Cogmind - Beta 11.1 @@@ ROGUE MODE // 2022.05.07 @ 10:45:56 Player: Loquitran Result: Destroyed by P-70 Sage with Tesla Rifle Performance ------------- Evolutions (4) 2000 Regions Visited (11) 2200 Robots Destroyed (36) 180 Value Destroyed (810) 810 Prototype IDs (23) 460 Alien Tech Used (0) 0 Bonus (820) 820 TOTAL SCORE: 6470 Bonus ------- Follower Combat Kills 220 Aligned with FarCom 300 Met Data Miner 300 Cogmind --------- Core Integrity 0/850 Matter 295/300 Energy 100/100 System Corruption 5% Temperature Cool (1) Movement Flying (35) Location -5/Proximity Caves Parts ------- > --- POWER (2) -------- (None) > --- PROPULSION (5) --- VTOL Module > --- UTILITY (6) ------ Cryofiber Web Improved Signal Interpreter Modified TNC Hacking Suite > --- WEAPON (2) ------- (None) > --- INVENTORY (5) ---- Heart of Steel Bore Cannon Tactical Quantum Warhead Peak State ------------ > --- POWER ------------ Improved Deuterium Engine Micro Nuclear Core > --- PROPULSION ------- Gravmag System Gravmag System Nuclear Pulse Thruster > --- UTILITY ---------- Improved Heat Sink Advanced Weight Redist. System Improved Signal Interpreter Modified TNC Hacking Suite Improved Hacking Suite > --- WEAPON ----------- Cooled Plasma Cannon Remote Datajack > --- INVENTORY -------- Cryofiber Web Heavy Plasma Cannon Tactical Quantum Warhead Scythe Great Axe [Rating: 56] Favorites ----------- Power Improved Deuterium Engine Engine Improved Deuterium Engine Power Core Micro Nuclear Core Propulsion Flight Unit Treads Medium Treads Leg Aluminum Leg Hover Unit Gravmag System Flight Unit Flight Unit Utility Hacking Suite Device Advanced Weight Redist. System Storage Small Storage Unit Processor Modified TNC Hackware Hacking Suite Weapon Scythe Energy Gun Small Laser Energy Cannon Advanced Beam Cannon Launcher Tactical Quantum Warhead Special Weapon Remote Datajack Impact Weapon Shock Maul Slashing Weapon Scythe Build | -11 -10 -10 -10 -9 -8 -7 -6 -6 -6 -6 -5 ------- Run | Scr Mat Min Exi Min Mat Fac Fac Low Low Dat Pro Slots Evolved 8 | . . . . . 4 2 2 . . . . Power 1 | . . . . . . 1 . . . . . Propulsion 3 | . . . . . 2 . 1 . . . . Utility 4 | . . . . . 2 1 1 . . . . Weapon . | . . . . . . . . . . . . Parts Attached 75 | . 7 8 3 . 9 6 23 1 16 . 2 Power 10 | . 3 2 . . . 1 2 . 2 . . Engine 8 | . 3 2 . . . 1 1 . 1 . . Core 2 | . . . . . . . 1 . 1 . . Reactor . | . . . . . . . . . . . . Propulsion 16 | . . 2 . . 3 . 5 1 3 . 2 Treads 1 | . . . . . . . . 1 . . . Leg . | . . . . . . . . . . . . Wheel . | . . . . . . . . . . . . Hover 2 | . . . . . . . . . 2 . . Flight 13 | . . 2 . . 3 . 5 . 1 . 2 Utility 19 | . 2 1 1 . 2 4 5 . 4 . . Device 13 | . 2 1 . . 1 3 2 . 4 . . Storage . | . . . . . . . . . . . . Processor 2 | . . . 1 . 1 . . . . . . Hackware 4 | . . . . . . 1 3 . . . . Protection . | . . . . . . . . . . . . Artifact . | . . . . . . . . . . . . Weapon 30 | . 2 3 2 . 4 1 11 . 7 . . Energy Gun 4 | . . 1 . . 2 . 1 . . . . Energy Cannon 13 | . 2 1 2 . 1 1 4 . 2 . . Ballistic Gun . | . . . . . . . . . . . . Ballistic Cannon . | . . . . . . . . . . . . Launcher 1 | . . . . . . . 1 . . . . Special Weapon 3 | . . 1 . . . . . . 2 . . Impact Weapon 1 | . . . . . . . 1 . . . . Slashing Weapon 8 | . . . . . 1 . 4 . 3 . . Piercing Weapon . | . . . . . . . . . . . . Special Melee Weapon . | . . . . . . . . . . . . Unidentified Prototypes 7 | . . . 2 . 1 . 4 . . . . Parts Lost 27 | . . 6 . . . . 10 . 1 . 10 Power 5 | . . 1 . . . . 2 . . . 2 Propulsion 12 | . . 2 . . . . 6 . . . 4 Utility 4 | . . . . . . . 1 . 1 . 2 Weapon 6 | . . 3 . . . . 1 . . . 2 Highest Loss Streak 7 | . . 6 . . . . 5 . 1 . 7 To Critical Strikes . | . . . . . . . . . . . . Average Slot Usage (%) 84 | . 94 79 91 100 96 95 91 53 75 86 57 Engine 8 | . 14 12 14 14 9 11 8 6 6 6 . Core 1 | . . . . . . . 2 . 2 6 3 Leg 3 | . 28 4 . . . . . . . . . Hover 3 | . . . . . . . . . 12 13 7 Flight 15 | . . 16 28 28 36 30 27 . 1 6 2 Device 11 | . 10 14 14 14 15 15 9 6 9 13 10 Storage 1 | . 14 6 . . . . . . . . . Processor 11 | . . . 6 14 16 15 13 13 13 13 13 Hackware 9 | . . . . . . 5 16 20 15 13 9 Energy Gun 1 | . . 7 14 14 6 . . . . . . Energy Cannon 8 | . 26 16 14 14 6 6 4 . 5 6 3 Slashing Weapon 4 | . . . . . 5 7 6 6 5 6 5 Naked Turns . | . . . . . . . . . . . . Heaviest Build 29 | 12 17 17 8 8 11 20 25 12 29 21 21 Greatest Support 29 | 20 20 20 8 8 16 25 29 12 27 27 27 Greatest Overweight (x) 2 | . . 2 . . . . . . 2 . . Average Overweight (x) . | . . . . . . . . . . . . Largest Inventory Capacity 8 | 8 8 8 5 5 5 5 5 5 5 5 5 Average Capacity 5 | 8 8 6 5 5 5 5 5 5 5 5 5 Most Carried 8 | 6 8 8 5 4 5 5 5 5 5 5 5 Average Carried 4 | 6 7 5 4 4 3 4 3 4 4 5 5 Final Capacity 8 | 8 8 5 5 5 5 5 5 5 5 5 5 Final Carried 8 | 6 8 4 4 4 4 5 4 5 5 5 5 Class Distribution -------------------- 35% | Hacker-Mutant 17% | Mutant 16% | Scavenger-Sprinter 14% | Hacker-Sprinter 9% | Sprinter 7% | Scavenger-Mutant Dominant Class ---------------- Mutant | -10/Materials Scavenger-Mutant | -10/Mines Scavenger-Mutant | -10/Exiles Scavenger-Mutant | -9/Mines Scavenger-Sprinter | -8/Materials Sprinter | -7/Factory Hacker-Sprinter | -6/Factory Hacker-Mutant | -6/Lower Caves Hacker-Mutant | -6/Lower Caves Hacker-Mutant | -6/Data Miner Hacker-Mutant | -5/Proximity Caves Resources | -11 -10 -10 -10 -9 -8 -7 -6 -6 -6 -6 -5 ----------- Run | Scr Mat Min Exi Min Mat Fac Fac Low Low Dat Pro Matter Collected 929 | 200 53 60 . . . 112 236 116 142 . 10 Remotely . | . . . . . . . . . . . . Salvage Created 1266 | . 246 115 . . 45 121 414 126 115 . 84 Parts 84 | . 20 8 . . . 8 25 9 8 . 6 Haulers Intercepted 1 | . . . . . . . 1 . . . . Recyclers Shooed 1 | . 1 . . . . . . . . . . Parts Field Recycled . | . . . . . . . . . . . . Retrieved Matter . | . . . . . . . . . . . . Parts Self-Destructed 19 | . . . . . . . . . 6 . 13 Prevented . | . . . . . . . . . . . . Kills | -11 -10 -10 -10 -9 -8 -7 -6 -6 -6 -6 -5 ------- Run | Scr Mat Min Exi Min Mat Fac Fac Low Low Dat Pro Combat Hostiles Destroyed 22 | . 8 5 . . 1 . 3 . 2 . 3 Melee 5 | . . . . . . . 1 . 1 . 3 Guns 1 | . . . . . 1 . . . . . . Cannons 14 | . 8 5 . . . . . . 1 . . AOE 2 | . . . . . . . 2 . . . . Classes Destroyed 12 | . 2 . . . . 3 5 1 1 . . Worker 4 | . . . . . . 3 1 . . . . Builder 5 | . . . . . . 1 4 . . . . Hauler 1 | . . . . . . . 1 . . . . Recycler 1 | . . . . . . . 1 . . . . Minesweeper 1 | . . . . . . . . . 1 . . Operator 1 | . . . . . . 1 . . . . . Watcher 1 | . . . . . . . 1 . . . . Swarmer 9 | . 3 3 . . . . . . . . 3 Cutter 2 | . . . . . . . 2 . . . . Grunt 8 | . 5 2 . . 1 . . . . . . Programmer 3 | . . . . . . . 1 . 2 . . Decomposer 1 | . . . . . . . . 1 . . . Samaritan 3 | . . . . . . . . 3 . . . Best Kill Streak 5 | . 2 5 . . 1 2 4 . 1 . 3 Combat Bots Only 5 | . 2 5 . . 1 . 2 . 1 . 3 Max Kills in Single Turn 3 | . 1 1 . . 1 1 3 1 1 . 1 Gunslinging . | . . . . . . . . . . . . Exploded 2 | . . . . . . . 2 . . . . Melee 1 | . . . . . . . 1 . 1 . 1 Uniques/NPCs Destroyed . | . . . . . . . . . . . . Combat | -11 -10 -10 -10 -9 -8 -7 -6 -6 -6 -6 -5 -------- Run | Scr Mat Min Exi Min Mat Fac Fac Low Low Dat Pro Damage Taken 2611 | . 170 577 . . . . 594 . 297 . 973 Core 995 | . 7 127 . . . . 150 . 154 . 557 Absorbed by Shields . | . . . . . . . . . . . . Core Remaining (%) 86 | 100 . . . 46 100 100 . . . . . Volleys Fired 58 | . 20 22 . . 4 . 1 . 11 . . Largest 2 | . 2 2 . . 2 . 1 . 1 . . Hottest 160 | . 120 160 . . 100 . 20 . 90 . . Shots Fired 85 | . 40 27 . . 6 . 1 . 11 . . Gun 6 | . . . . . 6 . . . . . . Cannon 75 | . 40 26 . . . . . . 9 . . Launcher 1 | . . . . . . . 1 . . . . Special 3 | . . 1 . . . . . . 2 . . Kinetic . | . . . . . . . . . . . . Thermal 76 | . 40 27 . . . . . . 9 . . Explosive 1 | . . . . . . . 1 . . . . Electromagnetic 6 | . . . . . 6 . . . . . . Robot Hit Streak 8 | . 4 8 . . 1 . . . 2 . . Robot Miss Streak 10 | . 3 10 . . 3 . . . 4 . . Penetration Max . | . . . . . . . . . . . . Secondary Targets . | . . . . . . . . . . . . Shots Hit Robots 78 | . 20 11 . . 2 7 16 4 15 . 3 Core Hits 36 | . 9 6 . . 1 4 7 4 2 . 3 Critical Kills . | . . . . . . . . . . . . Critical Parts Destroyed . | . . . . . . . . . . . . Critical Strikes 3 | . . . . . . . . . 3 . . Sever 3 | . . . . . . . . . 3 . . Melee Attacks 74 | . . . . . . 8 41 5 13 . 7 Impact . | . . . . . . . . . . . . Slashing 74 | . . . . . . 8 41 5 13 . 7 Piercing . | . . . . . . . . . . . . Sneak Attacks 18 | . . . . . . 4 8 4 2 . . Combat Hostiles . | . . . . . . . . . . . . Follow-up Attacks . | . . . . . . . . . . . . Damage Inflicted 3120 | . 362 230 . . 35 405 1150 263 580 . 95 Guns 35 | . . . . . 35 . . . . . . Cannons 694 | . 350 230 . . . . . . 114 . . Explosions 267 | . . . . . . . 267 . . . . Melee 2112 | . . . . . . 405 883 263 466 . 95 Ramming 12 | . 12 . . . . . . . . . . Kinetic . | . . . . . . . . . . . . Thermal 694 | . 350 230 . . . . . . 114 . . Explosive 267 | . . . . . . . 267 . . . . Electromagnetic 35 | . . . . . 35 . . . . . . Impact . | . . . . . . . . . . . . Slashing 2112 | . . . . . . 405 883 263 466 . 95 Piercing . | . . . . . . . . . . . . Highest Corruption 4 | . . . . . . . . . 3 3 4 Average Corruption 2 | . . . . . . . . . 2 3 3 Corruption Purged . | . . . . . . . . . . . . Corruption Blocked . | . . . . . . . . . . . . Effects 10 | . . . . . . . . . 6 . 4 Message Errors 4 | . . . . . . . . . 2 . 2 Matter Fused 1 | . . . . . . . . . 1 . . Heat Flow Errors 1 | . . . . . . . . . 1 . . Energy Discharges 1 | . . . . . . . . . . . 1 Parts Rejected 1 | . . . . . . . . . 1 . . Data Loss (minor) 1 | . . . . . . . . . 1 . . Data Loss (major) 1 | . . . . . . . . . . . 1 Overload Shots . | . . . . . . . . . . . . Overflow Damage 412 | . 5 . . . . 110 224 . 73 . . Projectiles 5 | . 5 . . . . . . . . . . Explosions 63 | . . . . . . . 63 . . . . Melee 344 | . . . . . . 110 161 . 73 . . Knockbacks . | . . . . . . . . . . . . Impact . | . . . . . . . . . . . . Kinetic . | . . . . . . . . . . . . Secondary . | . . . . . . . . . . . . Self-Inflicted Damage 68 | . . . . . . . 68 . . . . Shots 1 | . . . . . . . 1 . . . . Rammed . | . . . . . . . . . . . . Targets Rammed 3 | . 3 . . . . . . . . . . Kicked 3 | . 3 . . . . . . . . . . Crushed . | . . . . . . . . . . . . Highest Temperature 222 | . 222 96 . . 6 . 13 . 205 . . Average Temperature 64 | . 73 54 . . 3 . 7 . 79 . . Received Heat Transfer 642 | . 66 246 . . . . 36 . 18 . 276 Siege Activations . | . . . . . . . . . . . . Robots Corrupted . | . . . . . . . . . . . . Combat Hostiles . | . . . . . . . . . . . . Parts Fried . | . . . . . . . . . . . . Impact Corruptions . | . . . . . . . . . . . . Robots Melted . | . . . . . . . . . . . . Combat Hostiles . | . . . . . . . . . . . . Parts Melted 4 | . 3 1 . . . . . . . . . Heat Transferred 1371 | . 740 481 . . . . . . 150 . . Parts Sabotaged . | . . . . . . . . . . . . Parts Stolen . | . . . . . . . . . . . . Parts Stripped . | . . . . . . . . . . . . Power Chain Reactions . | . . . . . . . . . . . . Missiles Intercepted . | . . . . . . . . . . . . Alert | -11 -10 -10 -10 -9 -8 -7 -6 -6 -6 -6 -5 ------- Run | Scr Mat Min Exi Min Mat Fac Fac Low Low Dat Pro Peak Influence 319 | . 319 214 . . 71 93 290 . . . . Initial 124 | . . 124 . . . . 14 . . . . Average 120 | . 169 179 . . 9 49 151 . . . . Maximum Alert Level 1 | . 1 1 . . . . 1 . . . . Low Security (%) 73 | 100 47 79 . 100 100 100 61 . . . . Level 1 26 | . 52 20 . . . . 38 . . . . Level 2 . | . . . . . . . . . . . . Level 3 . | . . . . . . . . . . . . Level 4 . | . . . . . . . . . . . . Level 5 . | . . . . . . . . . . . . High Security . | . . . . . . . . . . . . Max Security . | . . . . . . . . . . . . Squads Dispatched 15 | . 3 . . . 1 4 7 . . . . Investigation 8 | . 2 . . . . 3 3 . . . . Extermination 1 | . . . . . . . 1 . . . . Reinforcement 6 | . 1 . . . 1 1 3 . . . . Assault . | . . . . . . . . . . . . Garrison . | . . . . . . . . . . . . Intercept . | . . . . . . . . . . . . Searches Triggered . | . . . . . . . . . . . . Construction Impeded 1 | . . . . . . . 1 . . . . Haulers Reinforced . | . . . . . . . . . . . . Active Scanning Responses . | . . . . . . . . . . . . Cargo Convoy Interrupts . | . . . . . . . . . . . . Stealth | -11 -10 -10 -10 -9 -8 -7 -6 -6 -6 -6 -5 --------- Run | Scr Mat Min Exi Min Mat Fac Fac Low Low Dat Pro Distress Signals . | . . . . . . . . . . . . Communications Jammed . | . . . . . . . . . . . . Distress Signals . | . . . . . . . . . . . . Times Spotted 57 | . 12 6 . . 2 5 8 . 4 . 20 Peak Tracking Total 8 | . 4 5 . . 1 3 4 . 1 . 8 Tactical Retreats 10 | . 1 . . . . 1 3 . 1 . 4 Traps | -11 -10 -10 -10 -9 -8 -7 -6 -6 -6 -6 -5 ------- Run | Scr Mat Min Exi Min Mat Fac Fac Low Low Dat Pro Traps Triggered 1 | . . . . . . . 1 . . . . Indirectly . | . . . . . . . . . . . . Trap Hack Attempts . | . . . . . . . . . . . . Triggered . | . . . . . . . . . . . . Disarmed . | . . . . . . . . . . . . Reprogrammed . | . . . . . . . . . . . . Reused . | . . . . . . . . . . . . Traps Extracted . | . . . . . . . . . . . . Installed . | . . . . . . . . . . . . Triggered 1 | . . . . . . . . . . . 1 Machines | -11 -10 -10 -10 -9 -8 -7 -6 -6 -6 -6 -5 ---------- Run | Scr Mat Min Exi Min Mat Fac Fac Low Low Dat Pro Machines Disabled 4 | . . . . . 2 . 2 . . . . Max in Single Turn 2 | . . . . . . . 2 . . . . Garrison Access 2 | . . . . . . 1 1 . . . . Machines Sabotaged . | . . . . . . . . . . . . Garrisons Compromised . | . . . . . . . . . . . . Overloaded Fab Kills . | . . . . . . . . . . . . Hacking | -11 -10 -10 -10 -9 -8 -7 -6 -6 -6 -6 -5 --------- Run | Scr Mat Min Exi Min Mat Fac Fac Low Low Dat Pro Machines Accessed 24 | . 3 . . . 3 6 7 . 1 4 . Terminals 10 | . 3 . . . 2 3 2 . . . . Fabricators 2 | . . . . . . 1 1 . . . . Repair Stations . | . . . . . . . . . . . . Recycling Units 3 | . . . . . 1 . 2 . . . . Scanalyzers 2 | . . . . . . 1 1 . . . . Garrison Access 2 | . . . . . . 1 1 . . . . Total Hacks 73 | . 9 . . . 5 12 16 . 1 30 . Successful 48 | . 5 . . . 3 1 8 . 1 30 . Failed 25 | . 4 . . . 2 11 8 . . . . Catastrophic 3 | . 1 . . . . 2 . . . . . Database Lockouts . | . . . . . . . . . . . . Manual 17 | . 8 . 1 . . 3 5 . . . . Terminals 26 | . 9 . . . 4 7 6 . . . . Fabricators 4 | . . . . . . 2 2 . . . . Repair Stations . | . . . . . . . . . . . . Recycling Units 4 | . . . . . 1 . 3 . . . . Scanalyzers 4 | . . . . . . 1 3 . . . . Garrison Access 4 | . . . . . . 2 2 . . . . Terminal Hacks 39 | . 5 . . . 2 . 1 . 1 30 . Record 11 | . . . . . . . . . . 11 . Part Schematic 10 | . . . . . . . . . . 10 . Robot Schematic 6 | . . . . . . . . . . 6 . Prototype ID Bank 6 | . 3 . . . . . . . . 3 . Open Door 1 | . . . . . . . . . 1 . . Branch Access Points 2 | . 1 . . . 1 . . . . . . Unreport Threat 1 | . . . . . 1 . . . . . . Recall Investigation 1 | . . . . . . . 1 . . . . Registered Prototypes 1 | . 1 . . . . . . . . . . Fabricator Hacks 1 | . . . . . . . 1 . . . . Build 1 | . . . . . . . 1 . . . . Repair Station Hacks . | . . . . . . . . . . . . Recycling Unit Hacks 2 | . . . . . 1 . 1 . . . . Report Inventory 2 | . . . . . 1 . 1 . . . . Scanalyzer 2 | . . . . . . . 2 . . . . Insert Component 1 | . . . . . . . 1 . . . . Analyze 1 | . . . . . . . 1 . . . . Garrison Access Hacks 2 | . . . . . . 1 1 . . . . Seal Access 2 | . . . . . . 1 1 . . . . Unauthorized Hacks 2 | . . . . . . . 2 . . . . Terminals . | . . . . . . . . . . . . Fabricators . | . . . . . . . . . . . . Repair Stations . | . . . . . . . . . . . . Recycling Units 2 | . . . . . . . 2 . . . . Tunnel 2 | . . . . . . . 2 . . . . Scanalyzers . | . . . . . . . . . . . . Garrison Access . | . . . . . . . . . . . . Data Cores Recovered . | . . . . . . . . . . . . Used . | . . . . . . . . . . . . Hacking Detections 14 | . 3 . . . 1 5 5 . . . . Full Trace Events 7 | . 3 . . . . 3 1 . . . . Feedback Events 1 | . . . . . . . 1 . . . . Hackware Fried 1 | . . . . . . . 1 . . . . Feedback Blocked . | . . . . . . . . . . . . Robot Schematics Acquired 6 | . . . . . . . . . . 6 . Robots Built . | . . . . . . . . . . . . Authchips . | . . . . . . . . . . . . Time . | . . . . . . . . . . . . Total Robot Build Rating . | . . . . . . . . . . . . Part Schematics Acquired 11 | . . . . . . . 1 . . 10 . Parts Built 1 | . . . . . . . 1 . . . . Authchips . | . . . . . . . . . . . . Time 68 | . . . . . . . 68 . . . . Total Part Build Rating 8 | . . . . . . . 8 . . . . Parts Repaired . | . . . . . . . . . . . . Time . | . . . . . . . . . . . . Parts Recycled . | . . . . . . . . . . . . Recycled Matter . | . . . . . . . . . . . . Retrieved Matter . | . . . . . . . . . . . . Retrieved Components . | . . . . . . . . . . . . Parts Scanalyzed 1 | . . . . . . . 1 . . . . Part Schematics Acquired 1 | . . . . . . . 1 . . . . Parts Damaged . | . . . . . . . . . . . . Bothacking | -11 -10 -10 -10 -9 -8 -7 -6 -6 -6 -6 -5 ------------ Run | Scr Mat Min Exi Min Mat Fac Fac Low Low Dat Pro Used RIF Installer . | . . . . . . . . . . . . Robots Hacked 2 | . . . . . . . . . 2 . . Non-combat 1 | . . . . . . . . . 1 . . Combat 1 | . . . . . . . . . 1 . . Robot Hacks Applied 2 | . . . . . . . . . 2 . . parse_system 2 | . . . . . . . . . 2 . . Relay Couplers Released . | . . . . . . . . . . . . Fabnet Peak Effective % . | . . . . . . . . . . . . Robots Rewired 1 | . . . . . . . 1 . . . . Allies Hacked . | . . . . . . . . . . . . Hacks Repelled . | . . . . . . . . . . . . Allies | -11 -10 -10 -10 -9 -8 -7 -6 -6 -6 -6 -5 -------- Run | Scr Mat Min Exi Min Mat Fac Fac Low Low Dat Pro Total Allies 5 | . . . . 3 . . 1 . . . 1 Largest Group 3 | . . . . 3 3 2 1 . . . 1 Highest-Rated Group 96 | . . . . 40 40 32 34 . . . 96 Highest-Rated Ally 96 | . . . . 16 16 16 34 . . . 96 Total Orders . | . . . . . . . . . . . . Ally Attacks 53 | . . . . . 11 17 6 . . . 19 Total Damage 1326 | . . . . . 118 182 453 . . . 573 Kills 11 | . . . . . 1 3 5 . . . 2 Allies Corrupted . | . . . . . . . . . . . . Allies Melted . | . . . . . . . . . . . . Intel | -11 -10 -10 -10 -9 -8 -7 -6 -6 -6 -6 -5 ------- Run | Scr Mat Min Exi Min Mat Fac Fac Low Low Dat Pro Robot Analysis Total . | . . . . . . . . . . . . Derelict Logs Recovered 5 | . . 1 . . . . . 1 2 . 1 Drone Launches . | . . . . . . . . . . . . Drone Recoveries . | . . . . . . . . . . . . Exploration | -11 -10 -10 -10 -9 -8 -7 -6 -6 -6 -6 -5 ------------- Run | Scr Mat Min Exi Min Mat Fac Fac Low Low Dat Pro Turns Passed 3064 | 3 349 175 85 31 149 453 788 148 555 52 276 Spaces Moved 4261 | 3 192 220 215 36 187 595 1211 263 713 93 533 Core 344 | . . 4 . . . . 1 263 70 . 6 Treads . | . . . . . . . . . . . . Legs 201 | 3 192 6 . . . . . . . . . Wheels . | . . . . . . . . . . . . Hover 1020 | . . . . . . . . . 643 93 284 Flight 2696 | . . 210 215 36 187 595 1210 . . . 243 Fastest Speed 25 | 120 120 37 37 37 29 29 25 50 50 56 35 Average Speed 44 | 120 120 43 37 37 30 29 29 50 62 56 46 Slowest Speed 200 | 120 120 200 37 37 31 29 50 50 150 56 60 Overloaded Moves . | . . . . . . . . . . . . Propulsion Burnouts . | . . . . . . . . . . . . Robots Hopped 16 | . . 4 . . . 4 7 . 1 . . Cave-ins Triggered . | . . . . . . . . . . . . Exploration Rate (%) 42 | 2 35 50 62 19 21 15 29 48 71 72 81 Regions Visited 11 Branch Regions 7 Pre-discovered Areas 4 | . . . . . . . 2 . . 1 1 Known Exits Taken 8 | . 1 1 . . 1 1 1 1 1 1 . Unknown Exits Taken 3 | 1 . . 1 1 . . . . . . . Scrap Searched 7 | . . . . . . . . 1 5 . 1 Spaces Dug 20 | . . . . . . . 20 . . . . Terrain Destroyed 65 | . . . . . . . 61 . 4 . . Melee 20 | . . . . . . . 20 . . . . Projectile 4 | . . . . . . . . . 4 . . AOE 41 | . . . . . . . 41 . . . . Terrain Rammed . | . . . . . . . . . . . . Walls Destroyed . | . . . . . . . . . . . . Machines Disabled . | . . . . . . . . . . . . Actions | -11 -10 -10 -10 -9 -8 -7 -6 -6 -6 -6 -5 --------- Run | Scr Mat Min Exi Min Mat Fac Fac Low Low Dat Pro Total 5208 | 2 271 265 219 53 273 859 1569 271 786 92 548 Wait 679 | . 38 17 . 18 61 247 267 1 24 . 6 Move 4219 | 2 191 212 214 35 186 586 1196 262 710 92 533 Hop 15 | . . 3 . . . 4 7 . 1 . . Pick Up 23 | . 5 . 1 . 6 2 4 1 4 . . Fast Attach 30 | . 3 4 1 . 3 5 5 1 6 . 2 Attach 18 | . . 3 1 . 2 1 9 . 2 . . Detach 10 | . . . . . 1 2 6 . 1 . . Swap 27 | . 4 1 1 . 4 . 9 . 8 . . Drop 35 | . 7 3 1 . 6 4 7 1 6 . . Fire 58 | . 20 22 . . 4 . 1 . 11 . . Melee 74 | . . . . . . 8 41 5 13 . 7 Ram . | . . . . . . . . . . . . Kick 3 | . 3 . . . . . . . . . . Crush . | . . . . . . . . . . . . Escape Stasis . | . . . . . . . . . . . . Rewire 17 | . . . . . . . 17 . . . . Trap . | . . . . . . . . . . . . Miscellaneous . | . . . . . . . . . . . . Route ------- -11/Scrapyard -10/Materials (discovered 2 exits: [*Mat] / *Min) -10/Mines (discovered 2 exits: [*Mat] / *Exi) -10/Exiles -9/Mines (discovered 2 exits: *Mat x2) -8/Materials -7/Factory (discovered 2 exits: *Fac x2) -6/Factory -6/Lower Caves -6/Lower Caves (discovered 2 exits: *Fac / *Dat) -6/Data Miner -5/Proximity Caves History --------- Turn | Location | Event 1 | -11/Scrapyard | Discovered new exit (range 3) 4 | -11/Scrapyard | Entered Materials 50 | -10/Materials | Identified exit to Mines 194 | -10/Materials | Discovered new exit (range 7) 304 | -10/Materials | Build established: Mutant 353 | -10/Materials | Entered Mines 372 | -10/Mines | Met a Derelict bent on vengeance 416 | -10/Mines | Core integrity fell below 50% 436 | -10/Mines | Lost 6 parts (1p2n3w) 479 | -10/Mines | Identified exit to Exiles 491 | -10/Mines | Joined a pair of Derelicts in attacking an 0b10 outpost 524 | -10/Mines | Discovered new exit (range 13) 526 | -10/Mines | Deemed a non-threat by the Exiles lab entrance 528 | -10/Mines | Entered Exiles 537 | -10/Exiles | Met 8R-AWN 544 | -10/Exiles | Met EX-HEX 554 | -10/Exiles | Met EX-BIN 560 | -10/Exiles | Aligned with FarCom system 560 | -10/Exiles | Given EX-Vault access code 568 | -10/Exiles | Opened EX-Vault 571 | -10/Exiles | Found Prototype Energy Cannon 572 | -10/Exiles | Identified Gui. Plasma Cannon 575 | -10/Exiles | Found Prototype Processor 575 | -10/Exiles | Identified Modified TNC 585 | -10/Exiles | Warned to stay clear of 0b10 Research branches 596 | -10/Exiles | Met EX-DEC 609 | -10/Exiles | Discovered new exit (range 14) 613 | -10/Exiles | Left Exiles lab with Modified TNC 613 | -10/Exiles | Entered Mines 613 | -9/Mines | Discovered new exit (range 11) 619 | -9/Mines | Assisted by bots powering up and referring to "LRC-V3" 622 | -9/Mines | Discovered new exit (range 9) 644 | -9/Mines | Entered Materials 644 | -8/Materials | Accompanied by 3 allies 644 | -8/Materials | Evolved 4 slots: Propulsion x2, Utility x2 760 | -8/Materials | Discovered new exit (range 11) 764 | -8/Materials | Identified exit to Factory 793 | -8/Materials | Entered Factory 793 | -7/Factory | Accompanied by 2 allies 793 | -7/Factory | Evolved 2 slots: Power x1, Utility x1 946 | -7/Factory | Build established: Scavenger-Sprinter 991 | -7/Factory | Discovered new exit (range 7) 992 | -7/Factory | Identified exit to Factory 999 | -7/Factory | Discovered exit to Factory (range 14) 1246 | -7/Factory | Entered another Factory area 1246 | -6/Factory | Evolved 2 slots: Propulsion x1, Utility x1 1559 | -6/Factory | Fabricated Tactical Quantum Warhead (x1) 1571 | -6/Factory | Hacking Suite fried by hacking feedback 1619 | -6/Factory | Build established: Hacker-Sprinter 1923 | -6/Factory | Lost 5 parts (4n1w) 2020 | -6/Factory | Discovered new exit (range 6) 2030 | -6/Factory | Identified exit to Lower Caves 2034 | -6/Factory | Entered Lower Caves 2094 | -6/Lower Caves | Identified exit to Lower Caves 2179 | -6/Lower Caves | Build established: Hacker-Mutant 2182 | -6/Lower Caves | Entered another Lower Caves area 2186 | -6/Lower Caves | Learned 4 Factory zone layouts 2278 | -6/Lower Caves | Discovered new exit (range 16) 2286 | -6/Lower Caves | Identified exit to Factory 2449 | -6/Lower Caves | Learned Factory machine intel 2581 | -6/Lower Caves | Encountered a Warlord checkpoint 2674 | -6/Lower Caves | Attracted the attention of an 0b10 checkpoint 2717 | -6/Lower Caves | Discovered new exit (range 4) 2718 | -6/Lower Caves | Identified exit to Data Miner 2733 | -6/Lower Caves | Found Prototype Device 2737 | -6/Lower Caves | Entered Data Miner 2737 | -6/Data Miner | Discovered new exit (range 6) 2741 | -6/Data Miner | Identified exit to Proximity Caves 2749 | -6/Data Miner | Met Data Miner 2764 | -6/Data Miner | Learned location of Section 7 (-2) 2764 | -6/Data Miner | Acquired the access code to Warlord's prototype stash 2774 | -6/Data Miner | Received God Mode back door access code from Data Miner 2789 | -6/Data Miner | Entered Proximity Caves 2933 | -5/Proximity Caves | Core integrity fell below 50% 2977 | -5/Proximity Caves | Core integrity fell below 20% 3004 | -5/Proximity Caves | Lost 7 parts (1p3n2u1w) 3065 | -5/Proximity Caves | Destroyed by P-70 Sage with Tesla Rifle Last Messages --------------- 02960_ System corrupted: Substantial component data lost. 02961_ Autogun fries itself beyond repair. 02962_ S-27 Virus destroyed. 02966_ Acquired VTOL Module. 02967_ Acquired 10 matter. 02968_ VTOL Module fries itself beyond repair. 02971_ S-27 Virus destroyed. 02972_ Lgt. Nuclear Core fries itself beyond repair. 02973_ VTOL Module destroyed. 02974_ Acquired VTOL Module. 02983_ ,N 7KSWC :JM&WDFJGLD 02994_ Acquired derelict log, extracted data. World map updated: -6/Factory. 03031_ Searching scrap... 03031_ Found Force Field. 03031_ Found Adv. Cooling System. 03031_ Found Imp. Thermal Shield. 03031_ Found Lrn. Tractor Beam. 03031_ Found 19 Matter. 03051_ Scythe destroyed. Map ----- +----------------------------------------------------+ | ?### #### ##### | | # ### ## | | ##?## ## ### | | ? ####### ####???## | | ??? ?????## #???????# ## | | ?? #????## ##??????## ##### ####### | | ## ###### ##??????## ##???# #??# | | # #???????## ##????# ## ####! | | ##????????## #??# #### !%! | | ##### ##??# ??????# ### #??######! | | ??# ### #????# ### ### ??????## | | #??## ### ##???????# #?# ?????# | | ???# #?# ##????????# ### ## ?????# | | ???# ### #?????????# #?# ??# ????# | | ???# ## #?????????## #?# ???##????# | | ????# ## ####???????## ### #????????## | | ##### ## #????########? ###?????## | | ##### #??### ##???? ##???## | | ##?## #?## ##???# ##??# | | ### ##??# ### ####?# ??## | | ###???# % ### ?## # | | #?????## ## % ### # | | ##??????### ##?# ## | | ###?????????# ##???# ### #? | | ????????????# ##??### ##?## ### #? | | ??????????### ##??# @ ##?## #### #? | | ??????????# #### ### #?## #? | | ??????????## ## ## ##?####? | | ??????????## ## #?????? | | ###???????# #?????? | | #???????# #?????? | | #???????##### ## #?????? | | #???????????# ##p #?????? | | #???????????# ### ##?????? | | #???????????### ###?## #####??????? | | #?????????????#########????##########??????????? | | #??????????????????????????????????????????????? | | #??????????????????????????????????????????????? | | #??????????????????????????????????????????????? | | #??????????????????????????????????????????????? | | #??????????????????????????????????????????????? | | ###??????????????????????????????????????????????? | | ?????????????????????????????????????????????????? | | ?????????????????????????????????????????????????? | | ?????????????????????????????????????????????????? | | ?????????????????????????????????????????????????? | | ?????????????????????????????????????????????????? | | ?????????????????????????????????????????????????? | | ?????????????????????????????????????????????????? | | ?????????????????????????????????????????????????? | +----------------------------------------------------+ Best States ------------- Heat Dissipation 51 Coolant Potential 65 Energy Generation 26 Energy Capacity 340 Matter Stores 300 Matter Capacity 300 Sight Range 16 Terrain Scan Density 10 Additional Mass Support 9 Base Temperature (-) 100 Evasion (%) 65 Offensive Hacking 32 Item Schematics ----------------- Tactical Quantum Warhead | -6/Factory | Scanalyzed Combat Drone Bay | -6/Data Miner | Free Lgt. Regenerative Plating | -6/Data Miner | Free Cld. Gravmag System | -6/Data Miner | Free Imp. Thermal Defense Suite | -6/Data Miner | Free Hvy. Proton Cannon | -6/Data Miner | Free Imp. Antigrav System | -6/Data Miner | Free Adv. Focal Shield | -6/Data Miner | Free Dispersion Rifle | -6/Data Miner | Free Imp. Arc Projector | -6/Data Miner | Free Com. HERF Cannon | -6/Data Miner | Free Robot Schematics ------------------ S-27 Virus | -6/Data Miner | Free X-62 Marksman | -6/Data Miner | Free H-66 Slayer | -6/Data Miner | Free M-22 Extractor | -6/Data Miner | Free L-61 Swordsman | -6/Data Miner | Free M-36 Artificer | -6/Data Miner | Free Fabricated ------------ Tactical Quantum Warhead | x1 | -6/Factory | Preloaded Alien Tech Used ----------------- None Achievements -------------- Brute Force Can't Catch Me GoHome() Part-time Excavator The Oracle Challenges ------------ None Game ------ Seed TeslaSiegeKinecellerator Manual? 0 Play Time 00:54:31 Cumulative 13.2 hours Start 2022.05.07 @ 09:49:00 End 2022.05.07 @ 10:45:56 Sessions 1 Manual Loads 0 Difficulty Rogue Special Mode None Game No. 18 Rogue 18 Adventurer 0 Explorer 0 Win Type - Total 0 Types 0/0/0/0/0/0/0/0/0 Lore% 18 Gallery% 24 Achievement% 23 Wizard Run 0 Options --------- ASCII 0 Keyboard 0 Movement Numpad Keybinds 0 Fullscreen 0 Font 16/SmallcapsGlow Map View 112x50 Tactical HUD 1 Map Filters NONE Filters NONE Steam 1 RUN: a1707009-4321-4ef3-920b-783a15b0e228